bitfinex/quotes_BTCUSD_20251224
["timestamp","ask_amount","ask_price","bid_price","bid_amount"]
[1766617714331,0.01138472,87837.0,87832.0,9.5e-07]
[1766617716190,0.06830989,87835.0,87832.0,9.5e-07]
[1766617716767,0.11434,87836.0,87832.0,9.5e-07]
[1766617717152,0.0797473,87839.0,87832.0,9.5e-07]
[1766617717153,0.01144,87839.0,87832.0,9.5e-07]
[1766617719261,0.02282446,87839.0,87832.0,9.5e-07]
[1766617719524,0.01144,87839.0,87832.0,9.5e-07]
[1766617720936,0.13398329,87848.0,87832.0,0.06831264]
[1766617721089,0.01144,87847.0,87839.0,0.00055]
[1766617721293,0.02282342,87847.0,87839.0,0.00055]
[1766617721831,0.01138355,87846.0,87834.0,0.0683102]
[1766617721997,0.01138278,87852.0,87839.0,0.01138446]
[1766617722200,0.2276378,87859.0,87852.0,0.00055]
[1766617722201,0.011382,87858.0,87852.0,0.00055]
[1766617722624,0.01138213,87857.0,87852.0,0.00055]
[1766617722794,0.01138213,87857.0,87845.0,0.01144]
[1766617723018,0.01138252,87854.0,87845.0,0.01144]
[1766617723214,0.01104484,87854.0,87845.0,0.01144]
[1766617723420,0.01138226,87856.0,87845.0,0.01144]
[1766617724084,0.00011,87864.0,87849.0,0.01138316]
[1766617724085,0.13404,87860.0,87849.0,0.01138316]
[1766617724300,0.01144,87860.0,87850.0,0.01138303]
[1766617724846,0.01144,87860.0,87851.0,0.0113829]
[1766617725089,0.00011,87864.0,87860.0,0.00055]
[1766617725292,0.01144,87867.0,87860.0,0.00055]
[1766617725667,0.01144,87867.0,87854.0,0.06829456]
[1766617726141,0.0359013,87869.0,87856.0,0.01138226]
[1766617726343,8.456e-05,87867.0,87857.0,0.01138213]
[1766617728186,8.456e-05,87867.0,87853.0,0.01138265]
[1766617728187,4.56e-06,87867.0,87853.0,0.2276515]
[1766617728326,0.01144,87871.0,87867.0,7.944e-05]
[1766617728660,0.01144,87871.0,87862.0,0.01138148]
[1766617728864,0.01144,87871.0,87861.0,0.01138161]
[1766617730270,0.01144,87871.0,87862.0,0.01138148]
[1766617730891,0.01144,87871.0,87861.0,0.01138161]
[1766617731081,0.01144,87871.0,87862.0,0.01138148]
[1766617731382,0.01144,87871.0,87863.0,0.01138135]
[1766617731588,0.01137967,87876.0,87863.0,0.01138135]
[1766617731785,0.01137993,87874.0,87863.0,0.01138135]
[1766617732195,0.0682786,87876.0,87863.0,0.01138135]
[1766617732196,0.13397967,87876.0,87864.0,0.01138122]
[1766617732352,0.01144,87874.0,87864.0,0.01138122]
[1766617732558,0.02281993,87874.0,87862.0,0.01138148]
[1766617732795,0.01138031,87871.0,87859.0,0.01138187]
[1766617732953,0.01138018,87872.0,87859.0,0.01146643]
[1766617733605,0.01138031,87871.0,87859.0,0.01146643]
[1766617733913,0.01138031,87871.0,87860.0,0.01138174]
[1766617734854,0.01138018,87872.0,87860.0,0.01138174]
[1766617735099,0.01138018,87872.0,87861.0,0.01138161]
[1766617735312,0.13398018,87872.0,87860.0,0.01138174]
[1766617735488,0.13398018,87872.0,87861.0,0.01138161]
[1766617735689,0.13398018,87872.0,87860.0,0.01138174]
[1766617735911,0.13398018,87872.0,87861.0,0.01138161]
[1766617736164,0.13398018,87872.0,87860.0,0.01138174]
[1766617736622,0.1226,87872.0,87862.0,0.01138148]
[1766617737442,0.1226,87872.0,87863.0,0.01138135]
[1766617737600,0.1226,87872.0,87864.0,0.01138122]
[1766617738495,0.1226,87872.0,87865.0,0.01138109]
[1766617741573,0.06,87867.0,87865.0,0.01138109]
[1766617741792,0.059455,87867.0,87865.0,0.01138109]
[1766617742175,0.059455,87867.0,87863.0,0.01138135]
[1766617742428,0.059455,87867.0,87830.0,0.06370587]
[1766617742429,0.11692,87856.0,87830.0,0.06370587]
[1766617742633,0.000549,87863.0,87830.0,0.06370587]
[1766617742634,0.11692,87854.0,87844.0,0.06370586]
[1766617742814,0.01138148,87862.0,87844.0,0.06370586]
[1766617742815,0.01144,87857.0,87849.0,0.01138316]
[1766617743060,0.01144,87857.0,87850.0,0.01138303]
[1766617743460,0.01144,87857.0,87849.0,0.01138316]
[1766617743960,0.01144,87857.0,87850.0,0.01138303]
[1766617745014,0.01144,87860.0,87854.0,0.01138252]
[1766617745193,0.01144,87860.0,87852.0,0.0569139]
[1766617745397,0.01144,87860.0,87851.0,0.0113829]
[1766617746041,0.01144,87860.0,87850.0,0.01138303]
[1766617746442,0.12836,87860.0,87850.0,0.01138303]
[1766617746827,0.12836,87860.0,87851.0,0.0113829]
[1766617748263,0.12836,87860.0,87852.0,0.01138278]
[1766617748464,0.12836,87860.0,87853.0,0.01138265]
[1766617748936,0.059565,87867.0,87857.0,0.01138213]
[1766617749169,0.00011,87867.0,87857.0,0.01138213]
[1766617749390,0.01155,87867.0,87858.0,0.011382]
[1766617749795,0.01155,87867.0,87857.0,0.01138213]
[1766617751535,0.01155,87867.0,87858.0,0.011382]
[1766617751752,0.01155,87867.0,87857.0,0.01138213]
[1766617752757,0.01155,87867.0,87858.0,0.011382]
[1766617753637,0.01155,87867.0,87857.0,0.01138213]
[1766617754030,0.01155,87867.0,87858.0,0.011382]
[1766617754222,0.06,87859.0,87858.0,0.011382]
[1766617754425,0.06,87859.0,87856.0,0.01138226]
[1766617756360,0.06,87859.0,87857.0,0.05691066]
[1766617757992,0.02457577,87871.0,87860.0,0.01138174]
[1766617757993,0.01144,87871.0,87860.0,0.01138174]
[1766617758342,0.01144,87871.0,87861.0,0.02282161]
[1766617758492,0.01144,87871.0,87861.0,0.01144]
[1766617758690,0.02282031,87871.0,87861.0,0.01144]
[1766617758892,0.01138044,87870.0,87861.0,0.01144]
[1766617759147,0.01138057,87869.0,87861.0,0.01144]
[1766617759854,0.0113807,87868.0,87861.0,0.01144]
[1766617760152,0.0113807,87868.0,87861.0,0.010891]
[1766617760153,0.01138083,87867.0,87861.0,0.010891]
[1766617761360,0.01138096,87866.0,87861.0,0.010891]
[1766617762182,0.01138083,87867.0,87861.0,0.010891]
[1766617762383,0.01138161,87861.0,87857.0,0.01144]
[1766617762702,0.01138174,87860.0,87857.0,0.01089]
[1766617763023,0.12830161,87861.0,87857.0,0.01089]
[1766617763183,0.11692,87861.0,87857.0,0.01089]
[1766617763387,0.01138174,87860.0,87857.0,0.01089]
[1766617763617,0.12830161,87861.0,87857.0,0.01089]
[1766617763816,0.01138174,87860.0,87857.0,0.01089]
[1766617764738,0.01138213,87857.0,87855.0,0.01144]
[1766617765116,0.011382,87858.0,87855.0,0.01144]
[1766617765529,0.128302,87858.0,87855.0,0.01144]
[1766617765932,0.11692,87858.0,87855.0,0.01144]
[1766617766138,0.116371,87858.0,87855.0,0.01144]
[1766617772143,0.116371,87858.0,87850.0,0.06829793]
[1766617772144,0.06828718,87865.0,87833.0,0.04556]
[1766617772145,0.11724,87846.0,87833.0,0.04556]
[1766617772348,0.0113842,87841.0,87834.0,0.01144]
[1766617773139,0.01138433,87840.0,87834.0,0.01144]
[1766617773526,0.01138433,87840.0,87834.0,0.01179341]
[1766617774620,0.0113842,87841.0,87834.0,0.01179341]
[1766617774825,0.01138433,87840.0,87834.0,0.01179341]
[1766617775541,0.0113842,87841.0,87834.0,0.01179341]
[1766617778132,0.01138433,87840.0,87834.0,0.01179341]
[1766617779074,0.11366,87836.0,87834.0,0.01124441]
[1766617782225,0.12504394,87843.0,87834.0,0.01124441]
[1766617782629,0.01138239,87855.0,87843.0,0.00055]
[1766617782827,0.01138239,87855.0,87844.0,0.01144]
[1766617783001,0.05691176,87856.0,87844.0,0.01144]
[1766617783002,0.01138226,87856.0,87845.0,0.01138368]
[1766617783221,0.011382,87858.0,87846.0,0.01138355]
[1766617783520,0.01138213,87857.0,87844.0,0.07974274]
[1766617783685,0.01138252,87854.0,87844.0,0.01144]
[1766617783886,0.01138265,87853.0,87844.0,0.01144]
[1766617784087,0.01138252,87854.0,87844.0,0.01144]
[1766617784368,0.01138265,87853.0,87844.0,0.01144]
[1766617784547,0.0113829,87851.0,87844.0,0.01144]
[1766617784691,0.01138316,87849.0,87844.0,0.01144]
[1766617785145,0.01138303,87850.0,87844.0,0.01144]
[1766617786686,0.0113829,87851.0,87844.0,0.01144]
[1766617787537,0.01138316,87849.0,87844.0,0.01144]
[1766617788838,0.01138303,87850.0,87844.0,0.01144]
[1766617789039,0.01138316,87849.0,87844.0,0.01144]
[1766617789187,0.01138329,87848.0,87844.0,0.01144]
[1766617789802,0.01138316,87849.0,87844.0,0.01144]
[1766617791305,0.01138303,87850.0,87844.0,0.01144]
[1766617792121,0.01138316,87849.0,87844.0,0.01144]
[1766617793092,0.01138303,87850.0,87844.0,0.01144]
[1766617793253,0.11366,87852.0,87844.0,0.01144]
[1766617793458,0.12504278,87852.0,87844.0,0.01144]
[1766617793861,0.11366,87852.0,87844.0,0.01144]
[1766617794975,0.12504278,87852.0,87844.0,0.01144]
[1766617795356,0.11366,87852.0,87844.0,0.01144]
[1766617795905,0.12504278,87852.0,87844.0,0.01144]
[1766617797459,0.11366,87852.0,87844.0,0.01144]
[1766617797664,0.12504278,87852.0,87844.0,0.01144]
[1766617797889,0.11366,87852.0,87844.0,0.01144]
[1766617800346,0.12504278,87852.0,87844.0,0.01144]
[1766617801408,0.0113829,87851.0,87844.0,0.01144]
[1766617801609,0.01138316,87849.0,87844.0,0.01144]
[1766617801811,0.06829932,87849.0,87844.0,0.010891]
[1766617802012,0.01138316,87849.0,87844.0,0.010891]
[1766617802465,0.01138303,87850.0,87844.0,0.010891]
[1766617803064,0.11366,87852.0,87844.0,0.010891]
[1766617805468,0.11366,87852.0,87844.0,0.02227481]
[1766617805690,0.11366,87852.0,87844.0,0.010891]
[1766617806432,0.11366,87852.0,87844.0,0.02227481]
[1766617806631,0.01144,87859.0,87852.0,0.01193178]
[1766617806900,0.01138135,87863.0,87852.0,0.011989]
[1766617806901,0.01149148,87862.0,87852.0,0.011989]
[1766617807097,0.00011,87862.0,87852.0,0.02282278]
[1766617807412,0.02458282,87864.0,87855.0,0.05691135]
[1766617807618,0.01138044,87870.0,87855.0,0.05691135]
[1766617807619,0.01144,87870.0,87864.0,0.000439]
[1766617808195,0.01144,87874.0,87862.0,0.01138148]
[1766617808479,0.01144,87874.0,87863.0,0.01138135]
[1766617808480,0.02281993,87874.0,87863.0,0.01138135]
[1766617808776,0.01138044,87870.0,87859.0,0.01144]
[1766617808936,0.01138005,87873.0,87859.0,0.02282187]
[1766617809137,0.01138005,87873.0,87861.0,0.01138161]
[1766617809358,0.01138018,87872.0,87861.0,0.01138161]
[1766617810465,0.01138005,87873.0,87861.0,0.01138161]
[1766617811141,0.01138031,87871.0,87859.0,0.02282187]
[1766617811343,0.01138018,87872.0,87859.0,0.02282187]
[1766617811555,0.01138005,87873.0,87859.0,0.02282187]
[1766617811849,0.01138005,87873.0,87860.0,0.05690823]
[1766617812070,0.02292605,87874.0,87863.0,0.01138135]
[1766617812477,0.02292605,87874.0,87864.0,0.01144]
[1766617813376,0.01148605,87874.0,87864.0,0.01144]
[1766617813577,0.00010612,87874.0,87868.0,0.0113807]
[1766617813817,0.01148605,87874.0,87864.0,0.01144]
[1766617814027,0.01138083,87867.0,87864.0,0.01144]
[1766617814229,0.1312107,87868.0,87864.0,0.01144]
[1766617815042,0.01138083,87867.0,87864.0,0.01144]
[1766617815255,0.1312107,87868.0,87864.0,0.01133]
[1766617815424,0.01138083,87867.0,87864.0,0.01133]
[1766617816628,0.18811471,87868.0,87864.0,0.01133]
[1766617817872,0.06828471,87868.0,87864.0,0.01133]
[1766617818172,0.01138083,87867.0,87864.0,0.01133]
[1766617819126,0.0113807,87868.0,87864.0,0.01133]
[1766617819951,0.01138083,87867.0,87864.0,0.01133]
[1766617820783,0.06828535,87867.0,87864.0,0.01133]
[1766617823805,0.03068555,87888.0,87864.0,0.01133]
[1766617823806,0.01148605,87874.0,87864.0,0.01133]
[1766617824010,0.11983,87873.0,87867.0,0.001099]
[1766617824539,0.11983,87873.0,87864.0,0.01133]
[1766617824729,0.11983,87873.0,87864.0,0.02271122]
[1766617825646,0.11983,87873.0,87864.0,0.01133]
[1766617825787,0.11983,87873.0,87864.0,0.02271122]
[1766617826107,0.11983,87873.0,87864.0,0.01133]
[1766617826510,0.01138018,87872.0,87864.0,0.01133]
[1766617826899,0.01138031,87871.0,87864.0,0.01133]
[1766617828289,0.01138018,87872.0,87864.0,0.01133]
[1766617828505,0.13121005,87873.0,87864.0,0.01133]
[1766617828952,0.11983,87873.0,87864.0,0.01133]
[1766617829162,0.119281,87873.0,87864.0,0.02271122]
[1766617830015,0.05689763,87878.0,87864.0,0.02271122]
[1766617830016,0.03068555,87891.0,87872.0,0.06370586]
[1766617830238,0.22753617,87899.0,87865.0,0.04556]
[1766617830239,0.12691785,87890.0,87875.0,0.0113798]
[1766617830449,0.11554,87888.0,87877.0,0.06827672]
[1766617830659,0.11554,87888.0,87878.0,0.01137941]
[1766617830883,0.11554,87888.0,87879.0,0.01144]
[1766617831093,0.12691811,87888.0,87879.0,0.01144]
[1766617831303,0.01137837,87886.0,87879.0,0.01144]
[1766617831715,0.01137824,87887.0,87879.0,0.01144]
[1766617831919,0.01137837,87886.0,87879.0,0.01144]
[1766617832170,0.01137824,87887.0,87879.0,0.01144]
[1766617832377,0.01137837,87886.0,87879.0,0.01144]
[1766617832599,0.01137837,87886.0,87868.0,0.0113807]
[1766617832600,0.05690195,87871.0,87860.0,0.04552]
[1766617832808,9.259e-05,87871.0,87861.0,0.02282161]
[1766617833630,9.259e-05,87871.0,87862.0,0.01138148]
[1766617833833,9.259e-05,87871.0,87861.0,0.02282161]
[1766617834352,9.259e-05,87871.0,87863.0,0.01138135]
[1766617834651,9.259e-05,87871.0,87865.0,0.01138109]
[1766617834849,9.259e-05,87871.0,87864.0,0.01138122]
[1766617835046,9.259e-05,87871.0,87866.0,0.01138096]
[1766617835255,9.259e-05,87871.0,87867.0,0.01144]
[1766617835693,9.259e-05,87871.0,87866.0,0.01138096]
[1766617835895,5.9e-07,87871.0,87868.0,0.07972384]
[1766617836106,5.9e-07,87871.0,87868.0,0.0228207]
[1766617836698,5.9e-07,87871.0,87868.0,0.01144]
[1766617836895,5.9e-07,87871.0,87868.0,0.0228207]
[1766617837547,0.01137902,87881.0,87868.0,0.0228207]
[1766617837548,0.01137811,87888.0,87876.0,0.01137967]
[1766617837716,0.01137811,87888.0,87877.0,0.01144]
[1766617838430,0.01137824,87887.0,87877.0,0.01144]
[1766617838743,0.01137798,87889.0,87877.0,0.02281954]
[1766617839123,0.01137798,87889.0,87877.0,0.01144]
[1766617839353,0.01137824,87887.0,87877.0,0.01144]
[1766617839725,0.01137837,87886.0,87877.0,0.01144]
[1766617844897,0.01137863,87884.0,87877.0,0.011349]
[1766617845102,0.01137915,87880.0,87877.0,0.011349]
[1766617845500,0.13377941,87878.0,87874.0,0.01144]
[1766617845738,0.1224,87878.0,87874.0,0.01089]
[1766617846195,0.01137954,87877.0,87874.0,0.01089]
[1766617846599,0.13377941,87878.0,87874.0,0.01089]
[1766617847110,0.01137967,87876.0,87861.0,0.06828909]
[1766617847351,0.1224,87872.0,87862.0,0.02282148]
[1766617848007,0.13378018,87872.0,87861.0,9.259e-05]
[1766617848185,0.1224,87862.0,87844.0,0.05690381]
[1766617848392,0.01138239,87855.0,87845.0,0.01144]
[1766617848588,0.01138265,87853.0,87845.0,0.01144]
[1766617848756,0.01138278,87852.0,87845.0,0.01144]
[1766617849437,0.01138265,87853.0,87845.0,0.01144]
[1766617850528,0.01138252,87854.0,87845.0,0.01144]
[1766617850738,0.01138265,87853.0,87845.0,0.01144]
[1766617852211,0.01138252,87854.0,87845.0,0.01144]
[1766617852546,0.1224,87855.0,87845.0,0.01144]
[1766617852754,0.13378239,87855.0,87845.0,0.01144]
[1766617853380,0.01138265,87853.0,87845.0,0.01144]
[1766617853588,0.0113829,87851.0,87845.0,0.01144]
[1766617854844,0.01138278,87852.0,87845.0,0.01144]
[1766617855074,0.01138303,87850.0,87845.0,0.01144]
[1766617855297,0.01138303,87850.0,87842.0,0.00011]
[1766617855298,0.01138316,87849.0,87842.0,0.00011]
[1766617855495,0.1224,87848.0,87842.0,0.01155]
[1766617855651,0.01138265,87853.0,87842.0,0.02293407]
[1766617855834,0.13378265,87853.0,87842.0,0.02293407]
[1766617856052,0.01138278,87852.0,87842.0,0.01155]
[1766617856260,0.1224,87852.0,87842.0,0.01155]
[1766617857165,0.13378278,87852.0,87842.0,0.01155]
[1766617857394,0.0113829,87851.0,87842.0,0.01155]
[1766617857624,0.13378278,87852.0,87842.0,0.01155]
[1766617858000,0.0113829,87851.0,87842.0,0.01155]
[1766617859699,0.01138303,87850.0,87842.0,0.01155]
[1766617860288,0.01138368,87845.0,87842.0,0.01155]
[1766617860487,0.13228316,87849.0,87842.0,0.01155]
[1766617860488,0.1209,87847.0,87842.0,0.011001]
[1766617862087,0.13228213,87857.0,87847.0,0.000549]
[1766617862369,0.01138226,87856.0,87843.0,0.06830351]
[1766617862778,0.01138226,87856.0,87844.0,0.01138381]
[1766617863182,0.01138239,87855.0,87844.0,0.01138381]
[1766617863382,0.13228213,87857.0,87845.0,0.01138368]
[1766617863600,0.01138135,87863.0,87857.0,0.000549]
[1766617863806,0.1209,87864.0,87853.0,0.01138265]
[1766617864011,2.59e-06,87862.0,87856.0,0.01138226]
[1766617864369,0.06828242,87871.0,87856.0,0.01138226]
[1766617864370,0.01138057,87869.0,87858.0,0.011382]
[1766617864583,0.05690353,87868.0,87854.0,0.02282252]
[1766617864788,0.01138083,87867.0,87856.0,0.01138226]
[1766617865194,0.0113807,87868.0,87857.0,0.01138213]
[1766617865411,0.0113807,87868.0,87856.0,0.01138226]
[1766617865608,0.01138083,87867.0,87854.0,0.07973461]
[1766617865950,0.0113807,87868.0,87857.0,0.01138213]
[1766617866385,0.01138114,87869.0,87858.0,0.011382]
[1766617867154,0.01138114,87869.0,87859.0,0.01144]
[1766617867545,0.01138083,87867.0,87859.0,0.01144]
[1766617867746,0.0113807,87868.0,87859.0,0.01144]
[1766617870144,0.01138083,87867.0,87859.0,0.01144]
[1766617870305,0.0113807,87868.0,87859.0,0.01027789]
[1766617871090,0.01138083,87867.0,87859.0,0.01027789]
[1766617874456,0.01138096,87866.0,87859.0,0.01027789]
[1766617874858,0.01138083,87867.0,87859.0,0.01027789]
[1766617875797,0.01138096,87866.0,87859.0,0.01027789]
[1766617876172,0.01138083,87867.0,87859.0,0.01027789]
[1766617876803,0.01138083,87867.0,87859.0,0.00880042]
[1766617878832,5.7e-07,87869.0,87859.0,0.00880042]
[1766617879355,5.7e-07,87869.0,87859.0,0.02018229]
[1766617879499,0.01138114,87869.0,87859.0,0.00880042]
[1766617880365,5.7e-07,87869.0,87860.0,0.01138174]
[1766617880587,5.7e-07,87869.0,87861.0,0.01138161]
[1766617880707,5.7e-07,87869.0,87860.0,0.01138174]
[1766617880905,5.7e-07,87869.0,87862.0,0.05690713]
[1766617881126,5.7e-07,87869.0,87866.0,0.01138096]
[1766617881327,5.7e-07,87869.0,87865.0,0.0569051]
[1766617881328,5.7e-07,87869.0,87865.0,0.02282109]
[1766617881555,5.7e-07,87869.0,87865.0,0.01144]
[1766617881757,5.7e-07,87869.0,87866.0,0.01138096]
[1766617882940,5.7e-07,87869.0,87866.0,0.06828527]
[1766617883379,5.7e-07,87869.0,87867.0,0.05690388]
[1766617883839,0.01144,87885.0,87876.0,0.01137967]
[1766617884176,0.01137863,87884.0,87874.0,0.01144]
[1766617884376,0.0113785,87885.0,87874.0,0.02281993]
[1766617884796,0.01137837,87886.0,87874.0,0.02281993]
[1766617885133,0.01137837,87886.0,87875.0,0.0113798]
[1766617885343,0.01144,87895.0,87881.0,0.05689456]
[1766617885549,0.12100614,87892.0,87882.0,0.01144]
[1766617886202,0.12100614,87892.0,87882.0,0.02281889]
[1766617886633,0.00010614,87892.0,87884.0,0.01137863]
[1766617887023,0.00010614,87892.0,87885.0,0.0113785]
[1766617887348,0.00010614,87892.0,87884.0,0.01137863]
[1766617887554,0.00010614,87892.0,87884.0,0.01078774]
[1766617888247,0.00010614,87892.0,87883.0,0.01137876]
[1766617888447,0.00010614,87892.0,87882.0,0.01144]
[1766617888995,0.01137772,87891.0,87882.0,0.01144]
[1766617889428,0.01137785,87890.0,87882.0,0.01144]
[1766617893091,0.01137772,87891.0,87882.0,0.01144]
[1766617893524,0.01148373,87892.0,87882.0,0.01144]
[1766617893800,0.01144,87895.0,87886.0,0.01137837]
[1766617894034,0.01144,87895.0,87885.0,0.0113785]
[1766617894227,0.13227682,87898.0,87887.0,0.02281824]
[1766617894389,0.01137695,87897.0,87887.0,0.01144]
[1766617894786,0.13227682,87898.0,87887.0,0.02281824]
[1766617895046,0.01137695,87897.0,87887.0,0.01144]
[1766617896070,0.01137708,87896.0,87887.0,0.01144]
[1766617897722,0.1209,87898.0,87887.0,0.01144]
[1766617897913,0.01137708,87896.0,87887.0,0.01144]
[1766617898315,0.01137721,87895.0,87887.0,0.01144]
[1766617899262,0.01137708,87896.0,87887.0,0.01144]
[1766617899607,0.01137721,87895.0,87887.0,0.01144]
[1766617901681,0.01137708,87896.0,87887.0,0.01144]
[1766617901816,0.01137734,87894.0,87887.0,0.01144]
[1766617902908,0.01137721,87895.0,87887.0,0.01144]
[1766617903766,0.01137747,87893.0,87887.0,0.01144]
[1766617904127,0.01137759,87892.0,87887.0,0.01144]
[1766617904326,0.01137785,87890.0,87887.0,0.01089]
[1766617906696,0.05689058,87888.0,87887.0,0.01089]
[1766617910779,0.05689058,87888.0,87886.0,0.0114]
[1766617910780,0.13233811,87888.0,87886.0,0.0114]
[1766617911421,0.05689135,87887.0,87886.0,0.0114]
[1766617913103,0.13233811,87888.0,87880.0,0.0114]
[1766617913104,0.01137889,87882.0,87880.0,0.0114]
[1766617913224,0.01137876,87883.0,87880.0,0.01150614]
[1766617913630,0.18923103,87885.0,87864.0,0.01138122]
[1766617913631,0.01137954,87877.0,87864.0,0.01138122]
[1766617913846,0.13233954,87877.0,87866.0,0.01138096]
[1766617914126,0.13233954,87877.0,87865.0,0.07508695]
[1766617914381,0.13233954,87877.0,87866.0,0.01138096]
[1766617914933,0.00036302,87874.0,87866.0,0.01138096]
[1766617916482,0.00036302,87874.0,87865.0,0.06370586]
[1766617916690,0.00036302,87874.0,87866.0,0.01138096]
[1766617917976,0.00036302,87874.0,87865.0,0.07508695]
[1766617918467,2e-08,87874.0,87866.0,0.01138096]
[1766617918819,2e-08,87874.0,87867.0,0.01138083]
[1766617919759,2e-08,87874.0,87868.0,0.0113807]
[1766617920007,2e-08,87874.0,87863.0,0.05690675]
[1766617920171,0.13571995,87874.0,87864.0,0.0114]
[1766617920373,0.12434002,87874.0,87864.0,0.0114]
[1766617920572,0.12434002,87874.0,87864.0,0.02278122]
[1766617921936,0.12434,87874.0,87864.0,0.02278122]
[1766617922543,0.12434,87874.0,87864.0,0.0114]
[1766617922751,0.12434,87873.0,87864.0,0.0114]
[1766617924027,0.01138148,87862.0,87850.0,0.01138303]
[1766617924238,0.01138135,87863.0,87860.0,0.0114]
[1766617925251,0.12434,87865.0,87860.0,0.0114]
[1766617925385,0.13572109,87865.0,87860.0,0.0114]
[1766617925591,0.01138122,87864.0,87860.0,0.0114]
[1766617925962,0.01138135,87863.0,87860.0,0.0114]
[1766617926298,0.13572148,87862.0,87858.0,0.0114]
[1766617926502,0.12434,87862.0,87858.0,0.0114]
[1766617926702,0.13572148,87862.0,87858.0,0.0114]
[1766617927334,0.12434,87862.0,87858.0,0.0114]
[1766617927970,0.123791,87862.0,87858.0,0.0114]
[1766617929018,0.01138109,87865.0,87858.0,0.0114]
[1766617929611,0.01138096,87866.0,87858.0,0.0114]
[1766617930135,0.01138122,87864.0,87858.0,0.0114]
[1766617930361,0.01138135,87863.0,87858.0,0.0114]
[1766617931150,0.01138122,87864.0,87858.0,0.0114]
[1766617932051,0.12434,87866.0,87858.0,0.0114]
[1766617932233,0.01138109,87865.0,87858.0,0.0114]
[1766617932926,0.13572096,87866.0,87858.0,0.0114]
[1766617933860,0.01138109,87865.0,87858.0,0.0114]
[1766617934414,0.01138122,87864.0,87858.0,0.0114]
[1766617936082,0.19262613,87866.0,87858.0,0.0114]
[1766617936083,0.13572096,87866.0,87858.0,0.0114]
[1766617936295,0.01138109,87865.0,87858.0,0.0114]
[1766617936509,0.13572096,87866.0,87858.0,0.0114]
[1766617937278,0.01138109,87865.0,87858.0,0.0114]
[1766617940832,0.13572122,87864.0,87858.0,0.0114]
[1766617941008,0.12434,87862.0,87858.0,0.0114]
[1766617941214,0.13572148,87862.0,87858.0,0.0114]
[1766617942447,0.12434,87862.0,87858.0,0.0114]
[1766617944085,0.12379,87862.0,87858.0,0.0114]
[1766617945656,0.12360436,87862.0,87858.0,0.0114]
[1766617949089,0.01138083,87867.0,87858.0,0.0114]
[1766617949491,0.12864083,87867.0,87858.0,0.0114]
[1766617950634,0.01138096,87866.0,87858.0,0.0114]
[1766617951397,0.12864096,87866.0,87858.0,0.0114]
[1766617951618,0.01138122,87864.0,87858.0,0.0114]
[1766617952032,0.01138122,87864.0,87854.0,0.00011]
[1766617952033,0.01138135,87863.0,87854.0,0.00011]
[1766617952235,0.01138135,87863.0,87855.0,0.0114]
[1766617952404,0.01138122,87864.0,87855.0,0.0114]
[1766617952849,0.01138135,87863.0,87855.0,0.0114]
[1766617953819,0.01138122,87864.0,87855.0,0.0114]
[1766617954019,0.01138135,87863.0,87855.0,0.0114]
[1766617954295,0.01138122,87864.0,87855.0,0.0114]
[1766617955433,0.11726,87866.0,87855.0,0.07969413]
[1766617955631,0.11726,87866.0,87856.0,0.01138226]
[1766617955850,0.12864096,87866.0,87855.0,0.07969413]
[1766617956066,0.11726,87866.0,87856.0,0.01138226]
[1766617956375,0.12864096,87866.0,87856.0,0.01138226]
[1766617956574,0.12864096,87866.0,87855.0,0.02278239]
[1766617956755,0.01138109,87865.0,87855.0,0.02278239]
[1766617957068,0.01138109,87865.0,87855.0,0.0114]
[1766617957393,0.12864096,87866.0,87855.0,0.0114]
[1766617957692,0.01138109,87865.0,87855.0,0.0114]
[1766617958136,0.01138122,87864.0,87855.0,0.0114]
[1766617959394,0.01138109,87865.0,87855.0,0.0114]
[1766617959571,0.01138135,87863.0,87855.0,0.0114]
[1766617959905,0.01138122,87864.0,87855.0,0.0114]
[1766617961509,0.01138109,87865.0,87855.0,0.0114]
[1766617961685,0.12864096,87866.0,87855.0,0.0114]
[1766617961886,0.01138109,87865.0,87855.0,0.0114]
[1766617962298,0.11726,87866.0,87856.0,0.01138226]
[1766617963013,0.12864096,87866.0,87855.0,0.02278239]
[1766617963163,0.11726,87866.0,87856.0,0.01138226]
[1766617963363,0.12864096,87866.0,87855.0,0.02278239]
[1766617963801,0.11726,87866.0,87855.0,0.02278239]
[1766617963997,0.11726,87866.0,87857.0,0.01138213]
[1766617964198,0.11726,87866.0,87856.0,0.01138226]
[1766617964526,0.12864096,87866.0,87856.0,0.01138226]
[1766617964721,0.11726,87866.0,87856.0,0.01138226]
[1766617964923,0.11726,87866.0,87855.0,0.02278239]
[1766617964924,0.12864096,87866.0,87855.0,0.02278239]
[1766617965425,0.01138109,87865.0,87855.0,0.02278239]
[1766617965646,0.01138109,87865.0,87851.0,0.06829686]
[1766617965647,0.1151,87852.0,87844.0,0.05691871]
[1766617965834,0.1151,87852.0,87845.0,0.01138368]
[1766617965972,0.1151,87852.0,87844.0,9.259e-05]
[1766617965973,0.1151,87852.0,87844.0,0.0114764]
[1766617966180,0.0114,87858.0,87847.0,0.01138342]
[1766617966568,0.01138213,87857.0,87845.0,0.01138368]
[1766617967048,0.01138239,87855.0,87844.0,0.06379845]
[1766617967277,0.01138278,87852.0,87844.0,0.06379845]
[1766617967484,0.01138239,87855.0,87844.0,9.259e-05]
[1766617967485,0.01138265,87853.0,87844.0,9.259e-05]
[1766617967695,0.01138278,87852.0,87844.0,9.259e-05]
[1766617967897,0.01138239,87855.0,87844.0,0.0114764]
[1766617968057,0.01138213,87857.0,87845.0,0.01138368]
[1766617968292,0.011382,87858.0,87845.0,0.01138368]
[1766617968488,0.01138213,87857.0,87845.0,0.01138368]
[1766617968700,0.01138187,87859.0,87846.0,0.06830133]
[1766617968908,0.01138187,87859.0,87847.0,0.0114]
[1766617969162,0.011382,87858.0,87848.0,0.01138329]
[1766617969710,0.011382,87858.0,87847.0,0.02278342]
[1766617969916,0.01138213,87857.0,87847.0,0.0114]
[1766617971600,0.01138226,87856.0,87847.0,0.0114]
[1766617972286,0.01138239,87855.0,87847.0,0.0114]
[1766617972490,0.01138226,87856.0,87847.0,0.0114]
[1766617972824,0.01138239,87855.0,87847.0,0.0114]
[1766617973873,0.01138226,87856.0,87847.0,0.0114]
[1766617975160,0.01138239,87855.0,87847.0,0.0114]
[1766617975315,0.01138226,87856.0,87847.0,0.0114]
[1766617975724,0.01138239,87855.0,87847.0,0.0114]
[1766617976171,0.01138226,87856.0,87847.0,0.0114]
[1766617977584,0.01138239,87855.0,87847.0,0.0114]
[1766617978556,0.01138226,87856.0,87847.0,0.0114]